Cogmind - Beta 12 @@@ ROGUE MODE // 2023.12.14 @ 08:03:48 Player: Leeman Result: Destroyed by as-84348 with Assembled Maul Performance ------------- Evolutions (0) 0 Regions Visited (2) 400 Robots Destroyed (11) 55 Value Destroyed (274) 274 Prototype IDs (0) 0 Alien Tech Used (0) 0 Bonus (0) 0 TOTAL SCORE: 729 Bonus ------- None Cogmind --------- Core Integrity 0/250 Matter 229/300 Energy 85/100 System Corruption 4% Temperature Cool (0) Movement Walking (400) Ox4 Location -10/Mines Parts ------- > --- POWER (1) -------- (None) > --- PROPULSION (2) --- Aluminum Leg > --- UTILITY (2) ------ High-capacity Storage Unit Signal Interpreter > --- WEAPON (2) ------- Light Assault Rifle > --- INVENTORY (20) --- Heat Sink Improved Heat Sink Light Cannon Peak State ------------ > --- POWER ------------ Light Nuclear Core > --- PROPULSION ------- Aluminum Leg Aluminum Leg > --- UTILITY ---------- High-capacity Storage Unit Sensor Array > --- WEAPON ----------- Assault Rifle Light Cannon > --- INVENTORY -------- Heat Sink Signal Interpreter Light Assault Rifle [Rating: 9] Favorites ----------- Power Ion Engine Engine Ion Engine Power Core Light Nuclear Core Propulsion Aluminum Leg Leg Aluminum Leg Utility High-capacity Storage Unit Device Sensor Array Storage High-capacity Storage Unit Processor Signal Interpreter Weapon Assault Rifle Energy Gun Medium Laser Ballistic Gun Assault Rifle Ballistic Cannon Light Cannon Special Weapon Mining Laser Build | -11 -10 -10 ------- Run | Jun Mat Min Slots Evolved . | . . . Power . | . . . Propulsion . | . . . Utility . | . . . Weapon . | . . . Parts Attached 17 | 6 9 2 Power 2 | 1 1 . Engine 1 | 1 . . Core 1 | . 1 . Reactor . | . . . Propulsion 5 | 2 3 . Treads . | . . . Leg 5 | 2 3 . Wheel . | . . . Hover . | . . . Flight . | . . . Utility 5 | 1 4 . Device 2 | . 2 . Storage 2 | 1 1 . Processor 1 | . 1 . Hackware . | . . . Protection . | . . . Artifact . | . . . Weapon 5 | 2 1 2 Energy Gun 1 | 1 . . Energy Cannon . | . . . Ballistic Gun 2 | 1 . 1 Ballistic Cannon 1 | . 1 . Launcher . | . . . Special Weapon 1 | . . 1 Impact Weapon . | . . . Slashing Weapon . | . . . Piercing Weapon . | . . . Special Melee Weapon . | . . . Unidentified Prototypes . | . . . Parts Lost 8 | . 4 4 Power 2 | . 1 1 Propulsion 2 | . 1 1 Utility 1 | . 1 . Weapon 3 | . 1 2 Highest Loss Streak 4 | . 3 4 To Critical Strikes 2 | . 1 1 Average Slot Usage (%) 97 | . 97 92 Engine 9 | . 9 . Core 3 | . 3 14 Leg 27 | . 27 28 Device 13 | . 13 . Storage 14 | . 14 14 Energy Gun 10 | . 10 . Ballistic Gun 14 | . 14 14 Ballistic Cannon 3 | . 3 . Naked Turns . | . . . Heaviest Build 51 | 14 51 50 Greatest Support 20 | 20 20 20 Greatest Overweight (x) 4 | 4 2 3 Average Overweight (x) 1 | 1 1 2 Largest Inventory Capacity 20 | 8 20 20 Average Capacity 18 | 7 18 20 Most Carried 6 | 2 6 4 Average Carried 4 | 1 4 3 Final Capacity 20 | 8 20 20 Final Carried 4 | 2 4 3 Class Distribution -------------------- 100% | Mutant Dominant Class ---------------- Mutant | -10/Materials Mutant | -10/Mines Resources | -11 -10 -10 ----------- Run | Jun Mat Min Matter Collected 444 | 217 227 . Remotely . | . . . Salvage Created 342 | . 342 . Parts 20 | . 20 . Haulers Intercepted . | . . . Recyclers Shooed 3 | . 3 . Parts Field Recycled . | . . . Retrieved Matter . | . . . Parts Self-Destructed . | . . . Prevented . | . . . Kills | -11 -10 -10 ------- Run | Jun Mat Min Combat Hostiles Destroyed 8 | . 8 . Guns 6 | . 6 . Cannons 2 | . 2 . Classes Destroyed 3 | . 3 . Watcher 3 | . 3 . Swarmer 3 | . 3 . Grunt 5 | . 5 . Best Kill Streak 3 | . 3 . Combat Bots Only 3 | . 3 . Max Kills in Single Turn 1 | . 1 . Gunslinging . | . . . Exploded . | . . . Melee . | . . . Uniques/NPCs Destroyed . | . . . Combat | -11 -10 -10 -------- Run | Jun Mat Min Damage Taken 1021 | . 565 456 Core 280 | . 127 153 Absorbed by Shields . | . . . Regen/Repaired (Parts) 114 | . 114 . Core Remaining (%) 100 | 100 . . Volleys Fired 39 | . 38 1 Largest 2 | . 2 2 Hottest 120 | . 70 120 Shots Fired 78 | . 76 2 Gun 67 | . 66 1 Cannon 10 | . 10 . Launcher . | . . . Special 1 | . . 1 Kinetic 49 | . 48 1 Thermal 29 | . 28 1 Explosive . | . . . Electromagnetic . | . . . Robot Hit Streak 6 | . 6 1 Robot Miss Streak 8 | . 8 1 Penetration Max . | . . . Secondary Targets . | . . . Shots Hit Robots 43 | . 42 1 Core Hits 17 | . 17 . Critical Kills . | . . . Critical Parts Destroyed . | . . . Critical Strikes . | . . . Melee Attacks . | . . . Impact . | . . . Slashing . | . . . Piercing . | . . . Sneak Attacks . | . . . Combat Hostiles . | . . . Follow-up Attacks . | . . . Damage Inflicted 591 | . 576 15 Guns 499 | . 484 15 Cannons 92 | . 92 . Explosions . | . . . Melee . | . . . Ramming . | . . . Kinetic 366 | . 351 15 Thermal 225 | . 225 . Explosive . | . . . Electromagnetic . | . . . Impact . | . . . Slashing . | . . . Piercing . | . . . Highest Corruption 4 | . 1 4 Average Corruption 1 | . 1 1 Corruption Purged . | . . . Corruption Blocked . | . . . Effects 6 | . 6 . Matter Fused 3 | . 3 . Heat Flow Errors 2 | . 2 . Energy Discharges 1 | . 1 . Overload Shots . | . . . Overflow Damage . | . . . Projectiles . | . . . Explosions . | . . . Melee . | . . . Knockbacks 2 | . 2 . Impact . | . . . Kinetic 2 | . 2 . Secondary . | . . . Self-Inflicted Damage . | . . . Shots . | . . . Rammed . | . . . Targets Rammed . | . . . Kicked . | . . . Crushed . | . . . Highest Temperature 213 | . 213 48 Average Temperature 71 | . 75 25 Received Heat Transfer 314 | . 258 56 Siege Activations . | . . . Robots Corrupted . | . . . Combat Hostiles . | . . . Parts Fried . | . . . Impact Corruptions . | . . . Robots Melted . | . . . Combat Hostiles . | . . . Parts Melted 2 | . 2 . Heat Transferred 666 | . 666 . Parts Sabotaged . | . . . Parts Stolen . | . . . Parts Stripped . | . . . Power Chain Reactions . | . . . Missiles Intercepted . | . . . Alert | -11 -10 -10 ------- Run | Jun Mat Min Peak Influence 113 | . 113 . Initial . | . . . Average 29 | . 31 . Maximum Alert Level . | . . . Low Security (%) 100 | 100 100 100 Level 1 . | . . . Level 2 . | . . . Level 3 . | . . . Level 4 . | . . . Level 5 . | . . . High Security . | . . . Max Security . | . . . Squads Dispatched . | . . . Investigation . | . . . Extermination . | . . . Reinforcement . | . . . Assault . | . . . Garrison . | . . . Intercept . | . . . Searches Triggered . | . . . Construction Impeded . | . . . Haulers Reinforced . | . . . Active Scanning Responses . | . . . Cargo Convoy Interrupts . | . . . Stealth | -11 -10 -10 --------- Run | Jun Mat Min Distress Signals . | . . . Communications Jammed . | . . . Distress Signals . | . . . Times Spotted 33 | . 13 20 Peak Tracking Total 22 | . 3 22 Tactical Retreats 1 | . . 1 Traps | -11 -10 -10 ------- Run | Jun Mat Min Traps Triggered 2 | . 2 . Indirectly . | . . . Trap Hack Attempts . | . . . Triggered . | . . . Disarmed . | . . . Reprogrammed . | . . . Reused . | . . . Traps Extracted . | . . . Installed . | . . . Triggered . | . . . Machines | -11 -10 -10 ---------- Run | Jun Mat Min Machines Disabled . | . . . Max in Single Turn . | . . . Machines Repaired . | . . . Machines Sabotaged . | . . . Overloaded Fab Kills . | . . . Hacking | -11 -10 -10 --------- Run | Jun Mat Min Machines Accessed 7 | . 7 . Terminals 5 | . 5 . Fabricators . | . . . Repair Stations 1 | . 1 . Recycling Units 1 | . 1 . Scanalyzers . | . . . Garrison Access . | . . . Total Hacks 13 | . 13 . Successful 10 | . 10 . Failed 3 | . 3 . Catastrophic 1 | . 1 . Database Lockouts . | . . . Manual . | . . . Terminals 7 | . 7 . Fabricators . | . . . Repair Stations 5 | . 5 . Recycling Units 1 | . 1 . Scanalyzers . | . . . Garrison Access . | . . . Terminal Hacks 5 | . 5 . Robot Analysis 1 | . 1 . Alert Level 2 | . 2 . Locate Traps 1 | . 1 . Dispatch Records 1 | . 1 . Fabricator Hacks . | . . . Repair Station Hacks 4 | . 4 . Scan Component 2 | . 2 . Repair 2 | . 2 . Recycling Unit Hacks 1 | . 1 . Report Inventory 1 | . 1 . Scanalyzer . | . . . Garrison Access Hacks . | . . . Unauthorized Hacks . | . . . Terminals . | . . . Fabricators . | . . . Repair Stations . | . . . Recycling Units . | . . . Scanalyzers . | . . . Garrison Access . | . . . Data Cores Recovered . | . . . Used . | . . . Hacking Detections 4 | . 4 . Full Trace Events . | . . . Feedback Events . | . . . Feedback Blocked . | . . . Robot Schematics Acquired . | . . . Robots Built . | . . . Authchips . | . . . Time . | . . . Total Robot Build Rating . | . . . Part Schematics Acquired . | . . . Parts Built . | . . . Authchips . | . . . Time . | . . . Total Part Build Rating . | . . . Parts Repaired 2 | . 2 . Time 52 | . 52 . Parts Recycled . | . . . Recycled Matter . | . . . Retrieved Matter . | . . . Retrieved Components . | . . . Parts Scanalyzed . | . . . Part Schematics Acquired . | . . . Parts Damaged . | . . . Bothacking | -11 -10 -10 ------------ Run | Jun Mat Min Used RIF Installer . | . . . Robots Hacked . | . . . Non-combat . | . . . Combat . | . . . Robot Hacks Applied . | . . . Relay Couplers Released . | . . . Fabnet Peak Effective % . | . . . Robots Rewired . | . . . Allies Hacked . | . . . Hacks Repelled . | . . . Allies | -11 -10 -10 -------- Run | Jun Mat Min Total Allies . | . . . Largest Group . | . . . Highest-Rated Group . | . . . Highest-Rated Ally . | . . . Total Orders . | . . . Ally Attacks . | . . . Total Damage . | . . . Kills . | . . . Allies Corrupted . | . . . Allies Melted . | . . . Intel | -11 -10 -10 ------- Run | Jun Mat Min Robot Analysis Total 1 | . 1 . Derelict Logs Recovered . | . . . Drone Launches . | . . . Drone Recoveries . | . . . Exploration | -11 -10 -10 ------------- Run | Jun Mat Min Turns Passed 2178 | 61 2091 26 Spaces Moved 729 | 36 686 7 Core 15 | 15 . . Treads . | . . . Legs 714 | 21 686 7 Wheels . | . . . Hover . | . . . Flight . | . . . Fastest Speed 50 | 50 120 190 Average Speed 231 | 141 236 260 Slowest Speed 330 | 250 260 330 Overloaded Moves . | . . . Propulsion Burnouts . | . . . Robots Hopped . | . . . Cave-ins Triggered . | . . . Exploration Rate (%) 33 | 3 89 9 Regions Visited 2 Branch Regions 1 Pre-discovered Areas . | . . . Known Exits Taken 1 | . 1 . Unknown Exits Taken 1 | 1 . . Scrap Searched . | . . . Spaces Dug . | . . . Terrain Destroyed . | . . . Melee . | . . . Projectile . | . . . AOE . | . . . Terrain Rammed . | . . . Walls Destroyed . | . . . Machines Disabled . | . . . Actions | -11 -10 -10 --------- Run | Jun Mat Min Total 1134 | 43 1081 10 Wait 340 | . 340 . Move 727 | 35 685 7 Hop . | . . . Pick Up 9 | 2 7 . Fast Attach 9 | 6 3 . Attach 5 | . 4 1 Detach . | . . . Swap 3 | . 2 1 Drop 2 | . 2 . Fire 39 | . 38 1 Melee . | . . . Ram . | . . . Kick . | . . . Crush . | . . . Escape Stasis . | . . . Rewire . | . . . Trap . | . . . Miscellaneous . | . . . Route ------- -11/Junkyard -10/Materials (discovered 4 exits: [*Mat x2] / *Min x2) -10/Mines History --------- Turn | Location | Event 42 | -11/Junkyard | Discovered new exit (range 15) 62 | -11/Junkyard | Entered Materials 310 | -10/Materials | Build established: Mutant 331 | -10/Materials | Discovered new exit (range 4) 337 | -10/Materials | Discovered new exit (range 15) 890 | -10/Materials | Discovered new exit (range 16) 1266 | -10/Materials | Discovered new exit (range 13) 1639 | -10/Materials | Core integrity fell below 50% 1693 | -10/Materials | Lost 3 parts (1n1u1w) 2028 | -10/Materials | Repaired Aluminum Leg 2056 | -10/Materials | Repaired Aluminum Leg 2136 | -10/Materials | Identified exit to Mines 2153 | -10/Materials | Entered Mines 2154 | -10/Mines | Assembled infested the area 2159 | -10/Mines | Assisted by a Guerilla fighting off Assembled 2167 | -10/Mines | Core integrity fell below 20% 2179 | -10/Mines | Destroyed by as-84348 with Assembled Maul Last Messages --------------- Seismic Survey Station disabled. HV Slug penetrates Core Extractor. TB-97C(h) Flexi-carbon Leg severed. as-23732 destroyed. Mining Laser destroyed. Seismic Survey Station disabled. as-66436 suffers critical hit (Destroy). as-66436 destroyed. G-47 Trooper destroyed. HV Slug penetrates Seismic Survey Station. Seismic Survey Station disabled. HV Slug penetrates Seismic Survey Station. TB-97C(h) destroyed. G-34 Mercenary system corrupted by crushing effect. G-34 Mercenary system terminally corrupted. Assault Rifle destroyed. Lgt. Nuclear Core destroyed. System corrupted by crushing effect (+3). Critical hit (Destroy). Aluminum Leg destroyed. Map ----- +----------------------------------------------------+ | | | | | | | | | | | | | | | | | | | | | | | | | | | ???????????????????????????????????? | | ?????????????????###############???? | | ?????????????????# #???? | | ?????????????????# "" """ """ #???? | | ???????????####### """%%""%""" #???? | | ?????????? " [ "*""" #???? | | ??????????" %%% #???? | | ?????????????????# """ %= """ #???? | | ?????????????????# *%! "" #???? | | ?????????????????# """ ] "" #???? | | ?????????????????# a #???? | | ?????????????????#########aa####???? | | ????????????????????????#@ #?????? | | ???????????????????????# #????? | | ???????????????????????# #???? | | ???????????????????????## g #???? | | ????????????????????????## #???? | | ?????????????????????????# #???? | | ????????????????????????? ##???? | | ????????????????????????? ##????? | | ????????????????????????? ###?????? | | ????????????????????????? ##???????? | | ?????????????????????????#?????????? | | ???????????????????????????????????? | | ???????????????????????????????????? | | ???????????????????????????????????? | | ???????????????????????????????????? | | ???????????????????????????????????? | | ???????????????????????????????????? | | ???????????????????????????????????? | | ???????????????????????????????????? | | ???????????????????????????????????? | | ???????????????????????????????????? | | ???????????????????????????????????? | | ???????????????????????????????????? | | ???????????????????????????????????? | | ???????????????????????????????????? | +----------------------------------------------------+ Best States ------------- Heat Dissipation 35 Energy Generation 14 Energy Capacity 250 Matter Stores 300 Matter Capacity 300 Sight Range 16 Robot Scan Range 14 Terrain Scan Density 10 Evasion (%) 55 Item Schematics ----------------- None Robot Schematics ------------------ None Fabricated ------------ Nothing Alien Tech Used ----------------- None Achievements -------------- Hunted Challenges ------------ None Game ------ Seed ForceLightningWeb Manual? 0 Play Time 00:16:51 Cumulative 9.9 hours Start 2023.12.14 @ 07:46:23 End 2023.12.14 @ 08:03:48 Sessions 1 Manual Loads 0 Difficulty Rogue Special Mode None Game No. 14 Rogue 14 Adventurer 0 Explorer 0 Win Type - Total 0 Types 0/0/0/0/0/0/0/0/0 Lore% 14 Gallery% 10 Achievement% 11 Wizard Run 0 Options --------- ASCII 0 Keyboard 0 Movement Mouse Keybinds 0 Fullscreen 1 Font 18/SmallcapsGlow Map View 76x50 Tactical HUD 0 Map Filters NONE Filters NONE Steam 1 RUN: aeb65a81-77f0-48dd-b5bb-6881236519fb